bitfinex-derivatives/quotes_BTCF0:USTF0_20250417
["timestamp","ask_amount","ask_price","bid_price","bid_amount"]
[1744901400607,0.1770763,84207.0,84206.0,0.24025207]
[1744901401106,0.1770763,84207.0,84206.0,8e-05]
[1744901401501,0.1770763,84207.0,84206.0,0.1188577]
[1744901401704,0.0583,84207.0,84206.0,0.1188577]
[1744901401905,0.53016,84220.0,84219.0,0.1187594]
[1744901402301,0.57676,84220.0,84219.0,0.1187594]
[1744901402510,0.58676,84220.0,84219.0,0.1187594]
[1744901402697,0.1187664,84214.0,84213.0,0.1074833]
[1744901402903,0.1187664,84214.0,84213.0,0.0593833]
[1744901403608,0.1187664,84214.0,84213.0,0.1066833]
[1744901403803,0.1653664,84214.0,84213.0,0.1066833]
[1744901404400,0.1653664,84214.0,84213.0,0.1559833]
[1744901404802,0.1187692,84212.0,84211.0,0.1781542]
[1744901405814,0.1187597,84219.0,84218.0,0.1187594]
[1744901406014,0.1065801,84219.0,84218.0,0.1187594]
[1744901406426,0.0593748,84229.0,84228.0,0.1187384]
[1744901406609,0.1781265,84229.0,84228.0,0.1187384]
[1744901406916,0.1782065,84229.0,84228.0,0.1187384]
[1744901407107,0.1781265,84229.0,84228.0,0.1187384]
[1744901407306,0.1782065,84229.0,84228.0,0.1187384]
[1744901407716,0.2254065,84229.0,84228.0,0.1187384]
[1744901409212,0.2254065,84229.0,84225.0,0.01284805]
[1744901409213,0.1187495,84226.0,84225.0,0.13159895]
[1744901411408,0.1187495,84226.0,84225.0,0.17819895]
[1744901412021,0.1187495,84226.0,84225.0,0.13159895]
[1744901413112,0.1187495,84226.0,84225.0,0.17869895]
[1744901413310,0.1187495,84226.0,84225.0,0.22819895]
[1744901414221,0.1188295,84226.0,84225.0,0.22819895]
[1744901414419,0.1187509,84225.0,84224.0,0.3608]
[1744901414715,0.1187509,84225.0,84217.0,0.3608]
[1744901414716,0.1187608,84218.0,84217.0,0.3608]
[1744901414917,0.1187608,84218.0,84217.0,0.2487622]
[1744901415118,0.2138608,84218.0,84217.0,0.2487622]
[1744901415318,0.2138608,84218.0,84217.0,0.2488422]
[1744901415512,0.2138608,84218.0,84217.0,0.1681422]
[1744901418014,0.2138608,84218.0,84217.0,0.1188422]
[1744901419118,0.2138608,84218.0,84217.0,0.1662422]
[1744901420521,0.2138608,84218.0,84217.0,0.1188422]
[1744901421325,0.059379,84220.0,84218.0,0.0593803]
[1744901421521,0.109079,84220.0,84219.0,0.5760594]
[1744901421718,0.109159,84220.0,84219.0,0.5760594]
[1744901422819,0.2279184,84220.0,84219.0,0.5760594]
[1744901425928,0.2279184,84220.0,84219.0,0.4103]
[1744901426115,0.2719184,84220.0,84219.0,0.3608]
[1744901426316,0.0593818,84216.0,84210.0,0.000108]
[1744901426514,0.4795707,84211.0,84210.0,0.000108]
[1744901426726,0.4995707,84211.0,84210.0,0.000108]
[1744901427024,0.1187805,84204.0,84203.0,0.01279428]
[1744901427227,0.4795805,84204.0,84203.0,0.01279428]
[1744901427728,0.5720805,84204.0,84203.0,8e-05]
[1744901427928,0.1187819,84203.0,84202.0,0.08768]
[1744901428130,0.1287819,84203.0,84202.0,0.08768]
[1744901428428,0.1772819,84203.0,84202.0,0.2064634]
[1744901428824,0.1772819,84203.0,84202.0,0.3032634]
[1744901429615,0.1672819,84203.0,84202.0,0.3032634]
[1744901430618,0.2156819,84203.0,84202.0,0.3032634]
[1744901434831,0.1187862,84200.0,84199.0,0.00510692]
[1744901435028,0.1187862,84200.0,84199.0,0.35389452]
[1744901435330,0.2145862,84200.0,84199.0,0.35389452]
[1744901435520,0.2145862,84200.0,84199.0,0.23510692]
[1744901436126,0.2245862,84200.0,84199.0,0.23510692]
[1744901436834,0.118796,84193.0,84192.0,0.000108]
[1744901437026,0.1188116,84182.0,84181.0,0.0486]
[1744901437231,0.4796116,84182.0,84181.0,0.167413]
[1744901437625,0.4796116,84182.0,84181.0,0.167493]
[1744901439331,0.4796116,84182.0,84181.0,0.17647973]
[1744901439534,0.5255116,84182.0,84181.0,0.17647973]
[1744901441137,0.1647116,84182.0,84181.0,0.17647973]
[1744901441340,0.3608,84183.0,84182.0,0.1188116]
[1744901441534,0.3608,84183.0,84182.0,0.2111116]
[1744901442436,0.0593994,84191.0,84190.0,0.1781969]
[1744901442635,0.1092994,84191.0,84190.0,0.1781969]
[1744901443537,0.2875055,84191.0,84190.0,0.1781969]
[1744901443937,0.2875055,84191.0,84190.0,0.0593994]
[1744901445239,0.2875055,84191.0,84190.0,0.0594794]
[1744901445928,0.2875055,84191.0,84190.0,0.1078794]
[1744901446643,0.2875055,84191.0,84190.0,0.04848]
[1744901447131,0.2875055,84191.0,84190.0,8e-05]
[1744901447531,0.2875055,84191.0,84190.0,0.1188803]
[1744901447927,0.178206,84189.0,84188.0,0.118802]
[1744901448130,0.2376075,84189.0,84188.0,0.118802]
[1744901448530,0.2376075,84189.0,84188.0,0.164302]
[1744901448731,0.118803,84189.0,84188.0,0.212102]
[1744901450742,0.1188059,84186.0,84185.0,0.000108]
[1744901450939,0.1188059,84186.0,84185.0,0.1188067]
[1744901450940,0.5390089,84186.0,84185.0,0.1188067]
[1744901451131,0.5390089,84186.0,84185.0,0.1188867]
[1744901451336,0.5390089,84186.0,84185.0,0.2101867]
[1744901451543,0.5875089,84186.0,84185.0,0.2101867]
[1744901452546,0.5875089,84186.0,84185.0,8e-05]
[1744901452746,0.5875089,84186.0,84185.0,0.1188873]
[1744901452948,0.6358089,84186.0,84185.0,0.1188073]
[1744901453146,0.1188102,84183.0,84182.0,0.1782141]
[1744901453449,0.1188102,84183.0,84182.0,0.1057055]
[1744901453648,0.2156102,84183.0,84182.0,0.1057055]
[1744901454148,0.1188116,84182.0,84181.0,0.00898673]
[1744901454338,0.2114116,84182.0,84181.0,0.118813]
[1744901454839,0.1188172,84178.0,84177.0,0.0491]
[1744901455246,0.2114172,84178.0,84177.0,0.0491]
[1744901455743,0.1631172,84178.0,84177.0,0.17702811]
[1744901456138,0.1631172,84178.0,84177.0,0.22282811]
[1744901457850,0.2089172,84178.0,84177.0,0.22282811]
[1744901458351,0.2089172,84178.0,84177.0,0.12792811]
[1744901458550,0.2089172,84178.0,84177.0,0.17552811]
[1744901459953,0.1631172,84178.0,84177.0,0.22052811]
[1744901460152,0.1631172,84178.0,84177.0,0.22060811]
[1744901460945,0.2088172,84178.0,84177.0,0.22060811]
[1744901461142,0.2088172,84178.0,84177.0,0.10178951]
[1744901461346,0.2088172,84178.0,84177.0,0.22060811]
[1744901461942,0.2088172,84178.0,84177.0,0.10178951]
[1744901462345,0.2088172,84178.0,84177.0,0.00910951]
[1744901462546,0.1188229,84174.0,84173.0,0.0531085]
[1744901462850,0.4796229,84174.0,84173.0,0.01419487]
[1744901463045,0.5770229,84174.0,84173.0,0.0051085]
[1744901463250,0.6254229,84174.0,84173.0,0.0051885]
[1744901463944,0.6254229,84174.0,84173.0,0.0051085]
[1744901464143,0.6254229,84174.0,84173.0,0.0051885]
[1744901465553,0.6354229,84174.0,84173.0,0.0051885]
[1744901467751,0.0126023,84192.0,84173.0,0.9267885]
[1744901467957,0.0126023,84192.0,84187.0,0.4796045]
[1744901467958,0.01910384,84188.0,84187.0,0.4796045]
[1744901468156,0.5042,84207.0,84196.0,0.1187918]
[1744901468359,0.4583,84207.0,84196.0,0.1687918]
[1744901468563,0.118788,84199.0,84196.0,0.1687918]
[1744901468740,0.0593925,84201.0,84196.0,0.2620918]
[1744901468948,0.29880724,84197.0,84196.0,0.2620918]
[1744901469246,0.4583,84207.0,84196.0,0.2620918]
[1744901469247,8e-05,84211.0,84210.0,0.1187721]
[1744901469452,0.3608,84215.0,84214.0,0.1187664]
[1744901469652,0.20697597,84218.0,84217.0,0.1187622]
[1744901470157,0.20697597,84218.0,84217.0,0.2487622]
[1744901470359,0.20705597,84218.0,84217.0,0.2487622]
[1744901470544,0.32573677,84218.0,84217.0,0.2487622]
[1744901470741,0.32581677,84218.0,84217.0,0.26129576]
[1744901470944,0.32573677,84218.0,84217.0,0.26129576]
[1744901471150,0.32581677,84218.0,84217.0,0.270268]
[1744901471749,0.32581677,84218.0,84217.0,0.01253356]
[1744901471953,0.1187636,84216.0,84215.0,0.00896333]
[1744901472159,0.1187636,84216.0,84207.0,0.000108]
[1744901472160,0.1187735,84209.0,84208.0,0.0485]
[1744901472343,0.1187735,84209.0,84208.0,0.1672749]
[1744901472548,0.1187805,84204.0,84203.0,0.08748]
[1744901472747,0.1187805,84204.0,84203.0,0.09642817]
[1744901472960,0.1187805,84204.0,84203.0,0.21521007]
[1744901473161,0.1187805,84204.0,84203.0,0.21529007]
[1744901473358,0.1187805,84204.0,84203.0,0.09650817]
[1744901473759,0.1187805,84204.0,84203.0,0.21529007]
[1744901474757,0.1187805,84204.0,84203.0,0.09650817]
[1744901475365,0.1187805,84204.0,84203.0,0.21529007]
[1744901476264,0.1187805,84204.0,84203.0,0.09650817]
[1744901476759,0.1187805,84204.0,84203.0,8e-05]
[1744901476966,0.1187975,84192.0,84191.0,0.08748]
[1744901477156,0.1188017,84189.0,84188.0,0.0462]
[1744901477347,0.1188017,84189.0,84188.0,0.2062]
[1744901477752,0.1188017,84189.0,84188.0,0.20628]
[1744901477955,0.1188017,84189.0,84188.0,0.2062]
[1744901478152,0.1188017,84189.0,84188.0,0.16008]
[1744901478351,0.1188017,84189.0,84188.0,0.16892986]
[1744901478555,0.1188017,84189.0,84188.0,0.28765296]
[1744901478853,0.1188017,84189.0,84188.0,0.28773296]
[1744901479056,0.1188017,84189.0,84188.0,0.2788831]
[1744901479460,0.1188017,84189.0,84188.0,0.16008]
[1744901479667,0.4796017,84189.0,84188.0,0.2788831]
[1744901479961,0.1187963,84193.0,84192.0,0.059398]
[1744901480152,0.059397,84195.0,84194.0,0.1187946]
[1744901481360,0.118796,84193.0,84192.0,0.0462]
[1744901481561,0.1188017,84189.0,84188.0,0.00898887]
[1744901481863,0.1188017,84189.0,84188.0,0.24]
[1744901482069,0.1188017,84189.0,84188.0,0.24008]
[1744901482564,0.5238017,84189.0,84188.0,0.24008]
[1744901484458,0.5238017,84189.0,84188.0,0.24108]
[1744901484665,0.5338017,84189.0,84188.0,0.22108]
[1744901484860,0.5338017,84189.0,84156.0,0.0594238]
[1744901484861,0.1188229,84175.0,84173.0,0.0051085]
[1744901485057,0.415,84189.0,84173.0,0.0051085]
[1744901485058,0.1634229,84174.0,84173.0,0.0051085]
[1744901485255,0.1634229,84174.0,84173.0,0.1239328]
[1744901485651,0.1634229,84174.0,84173.0,0.1711328]
[1744901486263,0.1634229,84174.0,84173.0,0.0051085]
[1744901486658,0.1634229,84174.0,84151.0,0.0594273]
[1744901486659,0.1188398,84162.0,84161.0,0.000108]
[1744901486861,0.4796398,84162.0,84161.0,0.100108]
[1744901487056,0.4796398,84162.0,84161.0,0.1]
[1744901487259,0.8504398,84162.0,84161.0,0.10008]
[1744901487459,0.059428,84151.0,84147.0,0.00511007]
[1744901487667,0.4796596,84148.0,84147.0,0.00511007]
[1744901487870,0.1188596,84148.0,84147.0,0.12397107]
[1744901488165,0.2377129,84154.0,84153.0,0.1188483]
[1744901489068,0.5985129,84154.0,84153.0,0.1188483]
[1744901489362,0.2377129,84154.0,84153.0,0.1188483]
[1744901489571,0.5985129,84154.0,84153.0,0.1188483]
[1744901489761,0.5985129,84154.0,84153.0,0.003]
[1744901490065,0.5985129,84154.0,84153.0,0.004]
[1744901490272,0.5985129,84154.0,84153.0,0.1228525]
[1744901491263,0.5985129,84154.0,84153.0,0.004]
[1744901491852,0.5985129,84154.0,84153.0,0.1228525]
[1744901492964,0.5985129,84154.0,84153.0,0.004]
[1744901493556,0.5985129,84154.0,84153.0,0.0505]
[1744901494870,0.5985129,84154.0,84153.0,0.05058]
[1744901495261,0.5985129,84154.0,84153.0,0.00408]
[1744901495857,0.5985129,84154.0,84153.0,0.1229325]
[1744901496056,0.5985129,84154.0,84153.0,0.00408]
[1744901496470,0.5985129,84154.0,84153.0,0.004]
[1744901496672,0.5985129,84154.0,84153.0,0.00408]
[1744901497968,0.5985129,84154.0,84153.0,0.1229325]
[1744901499074,0.5985129,84154.0,84153.0,0.00408]
[1744901499674,0.5985129,84154.0,84153.0,0.00108]
[1744901499877,0.5985129,84154.0,84153.0,8e-05]
[1744901503269,0.5985129,84154.0,84153.0,0.04688]
[1744901504270,0.5985129,84154.0,84153.0,0.1657325]
[1744901504976,0.5985129,84154.0,84153.0,0.04688]
[1744901505362,0.5985129,84154.0,84153.0,8e-05]
[1744901506175,0.5985129,84154.0,84153.0,0.1189325]
[1744901506673,0.5985129,84154.0,84153.0,8e-05]
[1744901506872,0.5985129,84154.0,84153.0,0.04798]
[1744901508282,0.5985129,84154.0,84147.0,0.07351781]
[1744901508283,0.1188596,84148.0,84147.0,0.01408781]
[1744901508580,0.1188596,84148.0,84147.0,0.01416781]
[1744901508781,0.1188596,84148.0,84147.0,0.13302881]
[1744901509175,0.1188596,84148.0,84147.0,0.22622881]
[1744901509366,0.0482,84153.0,84147.0,0.10736781]
[1744901509571,0.0594256,84154.0,84153.0,0.1782687]
[1744901510880,0.0594256,84154.0,84153.0,0.0594238]
[1744901511082,0.1188539,84152.0,84151.0,0.0928]
[1744901511376,0.1188539,84152.0,84151.0,0.2116553]
[1744901511577,0.2151539,84152.0,84151.0,0.0484]
[1744901512167,0.2151539,84152.0,84151.0,0.04848]
[1744901512578,0.2151539,84152.0,84151.0,8e-05]
[1744901512783,0.2251539,84152.0,84151.0,8e-05]
[1744901512985,0.1188596,84148.0,84147.0,0.01408781]
[1744901513480,0.2585596,84148.0,84147.0,0.01408781]
[1744901514081,0.2585596,84148.0,84147.0,0.01416781]
[1744901515281,0.2585596,84148.0,84147.0,0.00519007]
[1744901515485,0.2585596,84148.0,84147.0,0.00511007]
[1744901515784,0.2585596,84148.0,84147.0,0.00519007]
[1744901515981,0.2685596,84148.0,84147.0,0.00519007]
[1744901517981,0.2685596,84148.0,84147.0,0.00511007]
[1744901518169,0.2685596,84148.0,84147.0,0.00519007]
[1744901519385,0.2224596,84148.0,84147.0,0.00519007]
[1744901521087,0.1742596,84148.0,84147.0,0.12405107]
[1744901521279,0.1642596,84148.0,84147.0,0.12405107]
[1744901521480,0.1188596,84148.0,84147.0,0.21705107]
[1744901522792,0.1667596,84148.0,84147.0,0.21705107]
[1744901523392,0.1188596,84148.0,84147.0,0.21705107]
[1744901524488,0.4114,84152.0,84151.0,0.1188553]
[1744901524688,0.4114,84152.0,84151.0,0.6096553]
[1744901524889,0.0474,84166.0,84157.0,0.1188469]
[1744901525089,0.32791381,84168.0,84167.0,0.1188327]
[1744901525487,0.14966441,84168.0,84167.0,0.1188327]
[1744901525882,0.08590531,84168.0,84167.0,0.84221178]
[1744901526187,0.059401,84189.0,84176.0,0.11882]
[1744901526390,0.059402,84188.0,84176.0,0.20622]
[1744901526691,8e-05,84194.0,84176.0,0.48622]
[1744901526892,0.0474,84196.0,84176.0,0.54672]
[1744901527194,0.1188106,84183.0,84176.0,0.54672]
[1744901527992,0.1188132,84181.0,84176.0,0.54672]
[1744901528295,0.1188132,84181.0,84180.0,0.1188144]
[1744901528986,0.0594025,84187.0,84183.0,0.0594048]
[1744901529187,0.1188025,84189.0,84188.0,0.1188017]
[1744901530697,0.1626025,84189.0,84188.0,0.1188017]
[1744901532395,0.2089025,84189.0,84188.0,0.1188017]
[1744901532589,0.2089025,84189.0,84188.0,8e-05]
[1744901532990,0.1188087,84184.0,84183.0,0.1782141]
[1744901533898,0.1188087,84184.0,84183.0,0.18704246]
[1744901535998,0.1188087,84184.0,84183.0,0.06823326]
[1744901536195,0.5719087,84184.0,84183.0,0.06823326]
[1744901536700,0.2111087,84184.0,84183.0,0.06823326]
[1744901536997,0.5719087,84184.0,84183.0,0.06823326]
[1744901537200,0.5719087,84184.0,84183.0,0.00882836]
[1744901537501,0.5719087,84184.0,84183.0,0.1188102]
[1744901537688,0.5719087,84184.0,84183.0,0.1188902]
[1744901537883,0.5719087,84184.0,84183.0,8e-05]
[1744901538497,0.1188102,84183.0,84182.0,0.00889516]
[1744901538690,0.1188116,84182.0,84181.0,0.0594064]
[1744901538888,0.1188116,84182.0,84177.0,0.08728]
[1744901538889,0.1188172,84178.0,84177.0,0.08728]
[1744901539103,0.1188313,84169.0,84168.0,0.1188309]
[1744901539292,0.1188313,84169.0,84168.0,0.08728]
[1744901539599,0.2574313,84169.0,84168.0,0.08736]
[1744901540386,0.2574313,84169.0,84168.0,0.21498581]
[1744901540587,0.2574313,84169.0,84160.0,0.0595289]
[1744901540588,0.1188412,84161.0,84160.0,0.0595289]
[1744901540790,0.4796412,84161.0,84160.0,0.1783703]
[1744901540992,0.4796412,84161.0,84160.0,0.1782623]
[1744901541298,0.4796412,84161.0,84160.0,0.1783423]
[1744901542397,0.1188412,84161.0,84160.0,0.1783423]
[1744901542993,0.1188412,84161.0,84160.0,0.2248423]
[1744901543190,0.1188412,84161.0,84160.0,0.23366868]
[1744901544396,0.1188412,84161.0,84160.0,0.28196868]
[1744901544613,0.1650412,84161.0,84160.0,0.28196868]
[1744901545406,0.1650412,84161.0,84160.0,0.28296868]
[1744901545813,0.0462,84161.0,84160.0,0.28296868]
[1744901546107,0.0472,84168.0,84167.0,0.1782476]
[1744901546307,0.1660313,84168.0,84167.0,0.1782476]
[1744901546500,0.1782569,84164.0,84163.0,0.1782543]
[1744901546901,0.0594199,84162.0,84160.0,0.00982638]
[1744901547102,0.1668412,84161.0,84160.0,0.12866898]
[1744901547302,0.2140412,84161.0,84160.0,0.12866898]
[1744901547602,0.2140412,84161.0,84160.0,0.00882638]
[1744901547803,0.118844,84159.0,84158.0,0.2061243]
[1744901548101,0.118844,84159.0,84158.0,0.096234]
[1744901548293,0.212844,84159.0,84158.0,8e-05]
[1744901548494,0.0594281,84151.0,84149.0,0.13166515]
[1744901548694,0.1188596,84148.0,84147.0,0.18340007]
[1744901548904,0.1188596,84148.0,84147.0,0.19233]
[1744901549105,0.2093596,84148.0,84147.0,0.19241]
[1744901549708,0.2093596,84148.0,84147.0,0.20494248]
[1744901552119,0.1188709,84140.0,84139.0,0.000108]
[1744901552307,0.1188709,84140.0,84139.0,0.1189795]
[1744901552499,0.1188709,84140.0,84139.0,0.1188715]
[1744901552806,0.2092709,84140.0,84139.0,0.1189515]
[1744901554596,0.2092709,84140.0,84139.0,8e-05]
[1744901554801,0.2092709,84140.0,84139.0,0.12799011]
[1744901555097,0.2092709,84140.0,84139.0,0.1189523]
[1744901556906,0.1636709,84140.0,84139.0,0.1189523]
[1744901557701,0.2102709,84140.0,84139.0,0.1189523]
[1744901559204,0.2102709,84140.0,84139.0,0.12770288]
[1744901560197,0.2102709,84140.0,84139.0,0.00883058]
[1744901560397,0.2102709,84140.0,84139.0,0.12770288]
[1744901560696,0.2102709,84140.0,84139.0,0.00883058]
[1744901561510,0.2102709,84140.0,84139.0,0.00875058]
[1744901561716,0.2102709,84140.0,84139.0,8e-05]
[1744901562007,0.2202709,84140.0,84139.0,8e-05]
[1744901562203,0.2102709,84140.0,84139.0,8e-05]
[1744901562396,0.2102709,84140.0,84139.0,0.00912129]
[1744901562597,0.2102709,84140.0,84139.0,0.1189523]
[1744901563399,0.2102709,84140.0,84139.0,8e-05]
[1744901563599,0.1188822,84132.0,84131.0,0.1057416]
[1744901563802,0.4796822,84132.0,84131.0,0.0463]
[1744901564102,0.1189147,84109.0,84108.0,0.3608]
[1744901564410,0.1189147,84109.0,84108.0,0.4797161]
[1744901564909,0.1660147,84109.0,84108.0,0.54779826]
[1744901565409,0.1660147,84109.0,84108.0,0.54787826]
[1744901565609,0.1660147,84109.0,84108.0,0.54879826]
[1744901565913,0.1660147,84109.0,84108.0,0.54887826]
[1744901566105,0.1660147,84109.0,84108.0,0.41728908]
[1744901566304,0.1660147,84109.0,84108.0,0.48990518]
[1744901566510,0.1660133,84111.0,84110.0,0.0594566]
[1744901566713,0.1660133,84111.0,84110.0,0.1783699]
[1744901568203,0.1660133,84111.0,84110.0,0.0594566]
[1744901568402,0.1189147,84109.0,84108.0,0.20014919]
[1744901568799,0.1657147,84109.0,84108.0,0.20014919]
[1744901569005,0.1657147,84109.0,84108.0,0.20006919]
[1744901569205,0.1657147,84109.0,84108.0,0.20014919]
[1744901569407,0.1657147,84109.0,84108.0,0.00918908]
[1744901569612,0.2146147,84109.0,84108.0,0.00918908]
[1744901570012,0.2146147,84109.0,84108.0,0.01010908]
[1744901570207,0.5754147,84109.0,84108.0,0.01010908]
[1744901570811,0.5754147,84109.0,84108.0,0.01018908]
[1744901571010,0.5754147,84109.0,84108.0,0.01010908]
[1744901571205,0.5754147,84109.0,84108.0,0.01018908]
[1744901571405,0.5754147,84109.0,84101.0,0.01286966]
[1744901571606,0.118926,84101.0,84100.0,0.100108]
[1744901571901,0.128926,84101.0,84100.0,0.1086991]
[1744901572111,0.118926,84101.0,84100.0,0.10008]
[1744901572713,0.211226,84101.0,84100.0,0.10008]
[1744901573103,0.221226,84101.0,84100.0,0.10008]
[1744901573305,0.221226,84101.0,84100.0,0.10408]
[1744901573819,0.1189359,84094.0,84093.0,0.000108]
[1744901574111,0.1189571,84079.0,84078.0,0.0123756]
[1744901574313,0.1189543,84081.0,84080.0,0.000108]
[1744901574506,0.1189585,84079.0,84078.0,0.07211192]
[1744901574707,0.1189585,84079.0,84078.0,0.0594786]
[1744901574907,0.1189585,84079.0,84078.0,0.1042786]
[1744901575107,0.1189585,84079.0,84078.0,0.1043586]
[1744901575611,0.1199585,84079.0,84078.0,0.1203586]
[1744901575814,0.1209585,84079.0,84078.0,0.2393118]
[1744901576117,0.1209585,84079.0,84078.0,0.1203586]
[1744901577618,0.1209585,84079.0,84078.0,0.0755586]
[1744901578215,0.1209585,84079.0,84078.0,0.1215586]
[1744901580816,0.002,84079.0,84078.0,0.1215586]
[1744901581117,0.1209571,84079.0,84078.0,0.1215586]
[1744901584507,0.1209571,84079.0,84078.0,0.1670586]
[1744901586718,0.059466,84100.0,84078.0,0.35758]
[1744901586905,0.1189361,84098.0,84097.0,0.2378519]
[1744901587221,0.1189361,84098.0,84097.0,0.3311519]
[1744901587612,0.0489,84105.0,84101.0,0.0594627]
[1744901587811,0.3608,84110.0,84098.0,0.0594651]
[1744901587812,0.12028451,84120.0,84104.0,0.3608]
[1744901588013,0.1189105,84112.0,84111.0,0.1783668]
[1744901588317,0.0594587,84108.0,84107.0,0.1189175]
[1744901588618,0.0594587,84108.0,84107.0,0.2118175]
[1744901588813,0.178365,84114.0,84113.0,0.118909]
[1744901589015,0.12028451,84120.0,84119.0,0.1189006]
[1744901589216,0.005,84124.0,84123.0,0.1188949]
[1744901589416,0.1238935,84124.0,84123.0,0.1188949]
[1744901589633,0.1238935,84124.0,84123.0,0.1178949]
[1744901590017,0.1238935,84124.0,84123.0,0.12702284]
[1744901591215,0.1238935,84124.0,84123.0,0.00812794]
[1744901591520,0.1783479,84122.0,84121.0,0.0594487]
[1744901591720,0.1783479,84122.0,84121.0,0.1069487]
[1744901591910,0.1783479,84122.0,84121.0,0.1546487]
[1744901592418,0.1783479,84122.0,84121.0,0.05677975]
[1744901592618,0.2264479,84122.0,84121.0,0.00915975]
[1744901592809,0.5872479,84122.0,84121.0,8e-05]
[1744901593009,0.1188991,84120.0,84119.0,0.08728]
[1744901593412,0.1189105,84112.0,84111.0,0.3608]
[1744901593820,0.1189161,84108.0,84107.0,0.000108]
[1744901594008,0.1189175,84107.0,84106.0,0.08716]
[1744901594207,0.1189232,84103.0,84102.0,0.000108]
[1744901594415,0.1189274,84100.0,84099.0,0.3608]
[1744901594611,0.1189288,84099.0,84098.0,0.0454]
[1744901594815,0.2181288,84099.0,84098.0,0.05769274]
[1744901595016,0.2181288,84099.0,84098.0,0.17662294]
[1744901595217,0.2181288,84099.0,84098.0,0.0454]
[1744901595409,0.2181288,84099.0,84098.0,0.1643302]
[1744901595613,0.2181288,84099.0,84098.0,0.17353294]
[1744901595819,0.1687288,84099.0,84098.0,0.17353294]
[1744901596123,0.0594629,84102.0,84101.0,0.118926]
[1744901596414,0.0594604,84105.0,84104.0,0.1189218]
[1744901597317,0.0594604,84105.0,84104.0,0.1190018]
[1744901597616,0.0594604,84105.0,84104.0,0.1664018]
[1744901597815,0.0594604,84105.0,84104.0,0.1684018]
[1744901598318,0.0594604,84105.0,84104.0,0.1210018]
[1744901598517,0.0594604,84105.0,84104.0,0.00308]
[1744901599023,0.4202604,84105.0,84104.0,0.00308]
[1744901599221,0.0594604,84105.0,84104.0,0.00308]
[1744901599410,0.0594604,84105.0,84104.0,0.003]
[1744901599610,0.0594604,84105.0,84104.0,0.00308]
[1744901600320,0.4202604,84105.0,84104.0,0.00308]
[1744901601017,0.4202604,84105.0,84104.0,0.1220018]
[1744901601321,0.4202604,84105.0,84104.0,0.00308]
[1744901601621,0.4202604,84105.0,84104.0,0.1220018]
[1744901605725,0.5196604,84105.0,84104.0,0.1220018]
[1744901605920,0.1093604,84105.0,84104.0,0.1220018]
[1744901606227,0.1093604,84105.0,84104.0,0.2160018]
[1744901607320,0.1588604,84105.0,84104.0,0.2160018]
[1744901610625,0.1588604,84105.0,84104.0,0.1694018]
[1744901611230,0.09001127,84125.0,84122.0,0.0594481]
[1744901611231,0.005,84124.0,84122.0,0.0594481]
[1744901611417,0.1238935,84124.0,84123.0,0.2156949]
[1744901612019,0.21390477,84124.0,84123.0,0.2156949]
[1744901612414,0.09601127,84124.0,84123.0,0.2156949]
[1744901612928,0.21490477,84124.0,84123.0,0.22795482]
[1744901614132,0.09601127,84124.0,84123.0,0.22895482]
[1744901614524,0.09501127,84124.0,84123.0,0.22895482]
[1744901614837,0.09601127,84124.0,84123.0,0.22895482]
[1744901615330,0.09501127,84124.0,84123.0,0.22995482]
[1744901615531,0.26230477,84124.0,84123.0,0.22995482]
[1744901616127,0.1722935,84124.0,84123.0,0.22995482]
[1744901616528,0.1722935,84124.0,84123.0,0.23003482]
[1744901617938,0.2609935,84124.0,84123.0,0.002]
[1744901618227,0.2209935,84124.0,84123.0,0.00208]
[1744901618431,0.2309935,84124.0,84123.0,0.002]
[1744901618631,0.1189161,84108.0,84107.0,0.000108]
[1744901618931,0.1783797,84107.0,84106.0,0.0594594]
[1744901619120,0.3347391,84107.0,84106.0,0.0594594]
[1744901619823,0.3347391,84107.0,84106.0,0.1102594]
[1744901620425,0.3608,84126.0,84106.0,0.1011]
[1744901620624,0.2377994,84123.0,84122.0,0.1188963]
[1744901621127,0.2857994,84123.0,84122.0,0.1188963]
[1744901621830,0.3323994,84123.0,84122.0,0.2183963]
[1744901622034,0.1189048,84116.0,84115.0,0.3249639]
[1744901622531,0.1189048,84116.0,84115.0,0.3250439]
[1744901622931,0.1655048,84116.0,84115.0,0.3250439]
[1744901623534,0.1189048,84116.0,84115.0,0.3250439]
[1744901623832,0.1189048,84116.0,84115.0,0.3260439]
[1744901624332,0.1189048,84116.0,84115.0,0.3250439]
[1744901624834,0.1189048,84116.0,84115.0,0.3260439]
[1744901625423,0.1688048,84116.0,84115.0,0.3260439]
[1744901625630,0.2175048,84116.0,84115.0,0.3260439]
[1744901625826,0.2175048,84116.0,84115.0,0.207144]
[1744901626032,0.1688048,84116.0,84115.0,0.208144]
[1744901626636,0.2184048,84116.0,84115.0,0.208064]
[1744901626839,0.2184048,84116.0,84115.0,0.207144]
[1744901627425,0.2184048,84116.0,84115.0,0.08824]
[1744901627630,0.2662048,84116.0,84115.0,0.2071462]
[1744901627926,0.2662048,84116.0,84115.0,0.08816]
[1744901628238,0.2662048,84116.0,84115.0,0.08724]
[1744901628443,0.2662048,84116.0,84115.0,0.08716]
[1744901628740,0.2662048,84116.0,84115.0,0.08724]
[1744901628937,0.2672048,84116.0,84115.0,0.2061462]
[1744901629329,0.2672048,84116.0,84115.0,0.08724]
[1744901629533,0.2672048,84116.0,84115.0,0.08716]
[1744901629742,0.2672048,84116.0,84115.0,0.2061462]
[1744901629932,0.2662048,84116.0,84115.0,0.2061462]
[1744901630127,0.2672048,84116.0,84115.0,0.2061462]
[1744901631735,0.2662048,84116.0,84115.0,0.2061462]
[1744901631931,0.2672048,84116.0,84115.0,0.08724]
[1744901632338,0.2672048,84116.0,84115.0,0.2061462]
[1744901632538,0.6280048,84116.0,84115.0,0.2061462]
[1744901632836,0.2672048,84116.0,84115.0,0.2061462]
[1744901633038,0.2672048,84116.0,84115.0,0.3015462]
[1744901635037,0.2672048,84116.0,84115.0,0.2143862]
[1744901635237,0.2662048,84116.0,84115.0,0.2143862]
[1744901635439,0.2672048,84116.0,84115.0,0.2143862]
[1744901638033,0.2672048,84116.0,84115.0,0.1677862]
[1744901638934,0.2672048,84116.0,84115.0,0.1189862]
[1744901639945,0.2672048,84116.0,84115.0,0.1664862]
[1744901640241,0.2672048,84116.0,84115.0,0.2135862]
[1744901640935,0.2672048,84116.0,84115.0,0.1664862]
[1744901641136,0.2176048,84116.0,84115.0,0.1664862]
[1744901641332,0.5784048,84116.0,84115.0,0.1664862]
[1744901641544,0.6273048,84116.0,84115.0,0.1664862]
[1744901642748,0.6273048,84116.0,84115.0,0.2164862]
[1744901643536,0.3618,84116.0,84115.0,0.2164862]
[1744901643848,0.3598,84116.0,84115.0,0.2164862]
[1744901644549,0.09001127,84126.0,84123.0,0.1188949]
[1744901644752,1e-07,84124.0,84123.0,0.5667749]
[1744901645051,0.15041451,84139.0,84138.0,0.1188737]